bitfinex-derivatives/quotes_ETHF0:USTF0_20240913
["timestamp","ask_amount","ask_price","bid_price","bid_amount"]
[1726217391022,5.43719479,2349.0,2348.9,5.74757]
[1726217391719,5.43719479,2349.0,2348.9,7.27757]
[1726217393216,5.43719479,2349.0,2348.9,6.2133]
[1726217395222,5.43719479,2349.0,2348.9,7.27757]
[1726217396228,2.22939479,2349.0,2348.9,6.2133]
[1726217396525,2.22939479,2349.0,2348.9,1.9557]
[1726217396729,2.62009479,2349.0,2348.9,3.01997]
[1726217396929,2.62009479,2349.0,2348.9,7.27757]
[1726217398431,0.3907,2349.0,2348.9,7.27757]
[1726217399632,3.17783715,2349.0,2348.9,0.4257]
[1726217400534,3.17696813,2349.0,2348.9,0.4257]
[1726217400735,3.17697991,2349.0,2348.9,0.4257]
[1726217400927,6.81046991,2349.0,2348.9,0.4257]
[1726217401130,1.06431,2348.9,2348.4,5.1296]
[1726217401335,1.67190715,2348.5,2348.4,3.41209]
[1726217401526,1.67190715,2348.5,2348.4,1.8821]
[1726217401830,3.43764937,2348.5,2348.4,7.6705]
[1726217402221,3.43764937,2348.5,2348.4,7.2787]
[1726217402421,3.43764937,2348.5,2348.4,3.0203]
[1726217402837,3.43764937,2348.5,2348.4,7.2787]
[1726217403229,3.43764937,2348.5,2348.4,7.6801]
[1726217403533,3.86342937,2348.5,2348.4,4.6842]
[1726217403732,3.86342937,2348.5,2348.3,0.4258]
[1726217403733,0.42581,2348.4,2348.3,0.4258]
[1726217403925,3.21407243,2348.4,2348.3,0.4258]
[1726217404629,1.63419,2348.5,2348.4,0.4258]
[1726217404832,1.63419,2348.5,2348.1,1.06463]
[1726217404833,1.2084,2348.5,2348.1,1.06463]
[1726217405023,1.63419,2348.5,2348.4,0.4258]
[1726217405827,1.63419,2348.5,2348.1,3.00533]
[1726217406025,2.23091748,2348.2,2348.1,3.43118]
[1726217406431,2.23091748,2348.2,2348.1,7.68958]
[1726217406432,1.67311104,2348.2,2348.1,7.68958]
[1726217406832,2.23091748,2348.3,2348.1,7.68958]
[1726217407025,2.23091748,2348.3,2348.2,1.95583]
[1726217407432,2.23091748,2348.3,2348.2,2.34153]
[1726217408139,2.23091748,2348.4,2348.3,0.42581]
[1726217408739,2.23091748,2348.4,2348.3,1.49035]
[1726217409134,2.23091748,2348.4,2348.3,0.42581]
[1726217409335,2.23091748,2348.4,2348.3,1.49035]
[1726217409630,2.23091748,2348.4,2348.3,0.42581]
[1726217410831,2.23091748,2348.4,2348.3,1.95581]
[1726217411243,3.99704685,2348.5,2348.4,0.4258]
[1726217412743,7.20484685,2348.5,2348.4,0.4258]
[1726217412945,7.63062685,2348.5,2348.4,0.4258]
[1726217413136,7.20484685,2348.5,2348.4,1.9558]
[1726217413336,3.17614685,2348.5,2348.4,3.0203]
[1726217413637,0.3875,2348.5,2348.4,3.0203]
[1726217413938,2.61831306,2348.5,2348.4,3.4227]
[1726217416243,2.23081306,2348.5,2348.4,8.7456]
[1726217416438,2.23081306,2348.6,2348.5,1.49023]
[1726217416639,2.23081306,2348.7,2348.6,1.49017]
[1726217416839,2.23081306,2348.7,2348.6,3.02017]
[1726217417045,2.23081306,2348.7,2348.6,7.27777]
[1726217417345,2.78864685,2348.9,2348.7,1.06436]
[1726217417546,3.16484685,2348.9,2348.8,1.53]
[1726217417935,3.16484685,2348.9,2348.8,5.7876]
[1726217418137,3.16484685,2348.9,2348.8,1.53]
[1726217418540,3.16484685,2348.9,2348.8,1.95572]
[1726217420347,3.16484685,2348.9,2348.8,0.42572]
[1726217420546,3.5899125,2348.9,2348.8,0.42572]
[1726217420746,4.0097,2348.9,2348.8,0.42572]
[1726217423546,4.0097,2348.9,2348.7,0.42573]
[1726217423547,0.42573,2348.8,2348.7,0.42573]
[1726217423746,2.78809639,2348.8,2348.7,0.42573]
[1726217423946,3.584,2348.9,2348.8,0.42572]
[1726217424750,4.00971,2348.9,2348.8,0.42572]
[1726217432648,0.80191,2348.9,2348.8,0.42572]
[1726217443661,4.14965061,2348.9,2348.8,0.42572]
[1726217444564,0.80191,2348.9,2348.8,0.42572]
[1726217448754,4.00971,2348.9,2348.8,0.42572]
[1726217449771,4.00971,2348.9,2348.6,0.4022]
[1726217449772,3.584,2348.9,2348.6,0.4022]
[1726217449978,4.00972,2348.9,2348.8,0.42572]
[1726217451175,0.80192,2348.9,2348.8,0.42572]
[1726217451365,4.00972,2348.9,2348.8,0.42572]
[1726217454060,0.80192,2348.9,2348.8,0.42572]
[1726217454758,4.00972,2348.9,2348.8,0.42572]
[1726217455772,7.36053423,2348.9,2348.8,0.42572]
[1726217455972,4.00972,2348.9,2348.8,0.42572]
[1726217458064,0.80192,2348.9,2348.8,0.42572]
[1726217458469,4.00972,2348.9,2348.8,0.42572]
[1726217460375,0.42572,2348.8,2348.7,0.83552]
[1726217460877,7.91683754,2348.9,2348.8,0.42572]
[1726217462668,0.42572,2348.8,2348.7,0.83554]
[1726217462967,1.06436,2348.7,2348.2,2.17956848]
[1726217463272,3.35292525,2348.5,2348.4,0.82219]
[1726217463471,7.38039525,2348.6,2348.4,0.82219]
[1726217463678,4.02747,2348.6,2348.5,0.42578]
[1726217464173,7.37962604,2348.6,2348.4,0.82218]
[1726217464767,0.42578,2348.5,2348.4,0.82218]
[1726217465069,3.77793604,2348.5,2348.4,0.3964]
[1726217465472,3.77793604,2348.5,2348.3,0.8155]
[1726217465672,0.3792,2348.4,2348.3,0.8155]
[1726217466176,1.1814,2348.4,2348.3,0.81551]
[1726217466377,1.1814,2348.4,2348.2,0.3964]
[1726217466568,0.3827,2348.3,2348.2,0.82223]
[1726217468269,0.80851,2348.3,2348.2,0.82223]
[1726217468575,0.80851,2348.3,2348.2,0.3964]
[1726217468962,0.80851,2348.3,2348.2,0.82223]
[1726217469575,0.3827,2348.3,2348.2,0.82223]
[1726217469776,3.17295316,2348.3,2348.2,2.35223]
[1726217469975,2.79025316,2348.3,2348.2,2.35223]
[1726217470678,3.21606316,2348.3,2348.2,2.35223]
[1726217470878,2.79025316,2348.3,2348.2,2.35223]
[1726217472383,6.80306316,2348.4,2348.3,0.42581]
[1726217472875,6.80306316,2348.4,2348.2,0.3964]
[1726217472876,3.587,2348.4,2348.2,0.3964]
[1726217473184,3.2078,2348.4,2348.3,0.42581]
[1726217473483,3.2078,2348.4,2348.3,0.80381]
[1726217474478,5.99692939,2348.4,2348.3,0.80381]
[1726217474872,3.2078,2348.4,2348.3,0.80381]
[1726217475077,5.99694088,2348.4,2348.3,0.80381]
[1726217476481,3.2078,2348.4,2348.3,0.80381]
[1726217476675,3.2078,2348.4,2348.3,0.42581]
[1726217476978,3.6336,2348.4,2348.3,0.42581]
[1726217477589,0.42581,2348.3,2348.2,0.3964]
[1726217477787,4.2584,2348.3,2347.8,0.4032]
[1726217478083,4.2584,2348.3,2347.8,0.8142]
[1726217478084,2.23126603,2347.9,2347.8,0.8142]
[1726217478282,2.23126603,2347.9,2347.8,0.3883]
[1726217478283,2.65715603,2347.9,2347.8,0.3883]
[1726217478473,0.42595,2347.6,2347.3,3.2078]
[1726217478673,2.2310635,2347.6,2347.5,0.42595]
[1726217479594,2.2310635,2347.7,2347.6,0.42594]
[1726217479776,8.74243938,2347.8,2347.7,0.3883]
[1726217479983,5.53323372,2347.8,2347.7,0.3883]
[1726217481390,2.74581,2347.8,2347.7,0.3883]
[1726217482392,4.97344556,2347.8,2347.7,0.3883]
[1726217483387,4.97295892,2347.8,2347.7,0.3883]
[1726217483590,2.74581,2347.8,2347.7,0.3883]
[1726217484100,0.42595,2347.6,2347.4,0.81167]
[1726217484387,1.49991535,2347.5,2347.4,1.20717]
[1726217485086,2.05702507,2347.5,2347.4,1.20717]
[1726217485287,1.49965002,2347.5,2347.4,1.20717]
[1726217485791,2.48298507,2347.5,2347.4,0.82148]
[1726217486191,2.48298507,2347.5,2347.4,0.3955]
[1726217486891,4.01298507,2347.5,2347.4,0.3955]
[1726217487683,4.01298507,2347.5,2347.3,0.42598]
[1726217487892,1.11257361,2347.4,2347.3,0.42598]
[1726217488279,6.66293361,2347.5,2347.3,0.42598]
[1726217488894,6.66293361,2347.5,2347.4,0.42598]
[1726217489089,3.45513361,2347.5,2347.4,0.42598]
[1726217489286,3.45513361,2347.5,2347.3,0.42598]
[1726217489487,6.66293361,2347.5,2347.3,0.42598]
[1726217491086,0.42598,2347.4,2347.3,0.00546428]
[1726217491286,3.84965361,2347.4,2347.3,0.00546428]
[1726217491589,4.40750507,2347.4,2347.3,0.00546428]
[1726217492390,3.84863987,2347.4,2347.3,0.00546428]
[1726217492987,2.31863987,2347.4,2347.3,0.00546428]
[1726217493189,1.53753987,2347.4,2347.3,0.00546428]
[1726217493398,1.11155987,2347.4,2347.3,0.43146428]
[1726217494196,0.42598,2347.4,2347.3,0.43146428]
[1726217494798,1.53753987,2347.4,2347.3,0.43146428]
[1726217495293,0.42598,2347.4,2347.3,0.43146428]
[1726217497091,1.53753987,2347.4,2347.3,0.43146428]
[1726217498796,5.13192987,2347.5,2347.3,0.43146428]
[1726217500086,0.42598,2347.4,2347.3,0.43146428]
[1726217500291,0.42598,2347.4,2347.3,0.00546428]
[1726217500494,0.42598,2347.4,2347.3,0.43146428]
[1726217501695,1.53753987,2347.4,2347.3,0.43146428]
[1726217502990,0.42598,2347.4,2347.3,0.43146428]
[1726217503197,1.53753987,2347.4,2347.3,0.43146428]
[1726217504199,2.60248987,2347.4,2347.3,0.00546428]
[1726217504394,3.16135507,2347.4,2347.3,0.00546428]
[1726217504799,2.09640507,2347.4,2347.3,0.00546428]
[1726217505204,3.16135507,2347.4,2347.3,0.00546428]
[1726217505509,3.15891846,2347.4,2347.3,0.00546428]
[1726217505803,3.15891846,2347.4,2347.0,0.80404]
[1726217505804,0.42603,2347.2,2347.0,0.80404]
[1726217506006,3.574442,2347.1,2347.0,0.80404]
[1726217506200,3.965442,2347.1,2347.0,0.80404]
[1726217506799,3.96951164,2347.1,2347.0,0.80806531]
[1726217512400,3.96952997,2347.1,2347.0,0.80806531]
[1726217512602,2.43952997,2347.1,2347.0,0.80806531]
[1726217516200,2.86555997,2347.1,2347.0,0.80806531]
[1726217516602,2.43952997,2347.1,2347.0,0.80806531]
[1726217517318,0.77176964,2347.1,2347.0,0.80806531]
[1726217518914,0.77176964,2347.1,2347.0,1.87319531]
[1726217519516,0.77176964,2347.1,2347.0,0.80806531]
[1726217530525,1.19779964,2347.1,2347.0,0.38202531]
[1726217530823,2.26288964,2347.1,2347.0,0.00402531]
[1726217531619,1.19779964,2347.1,2347.0,0.00402531]
[1726217538829,6.52368964,2347.1,2347.0,0.00402531]
[1726217539037,10.42297487,2347.1,2347.0,0.00402531]
[1726217540628,14.69586487,2347.1,2347.0,0.00402531]
[1726217544442,0.42613,2346.6,2346.3,0.099]
[1726217544643,4.56026275,2346.5,2346.4,0.83534]
[1726217545046,2.3317,2346.5,2346.4,0.83534]
[1726217545432,2.3317,2346.5,2346.4,0.83932559]
[1726217547234,1.53,2346.5,2346.4,0.83932559]
[1726217547654,4.31570344,2346.5,2346.4,0.83932559]
[1726217548053,4.31570344,2346.5,2346.4,0.41318559]
[1726217548054,4.74184344,2346.5,2346.4,0.41318559]
[1726217548255,8.32534344,2346.5,2346.4,0.41318559]
[1726217548456,5.53964,2346.5,2346.4,0.41318559]
[1726217548764,5.53964,2346.5,2345.9,1.53]
[1726217548765,1.0654,2346.4,2345.9,0.42624]
[1726217549060,2.78553733,2346.2,2346.1,0.4082]
[1726217549248,4.31553733,2346.2,2346.1,0.4082]
[1726217549651,4.31553733,2346.2,2346.1,0.41238413]
[1726217550057,4.74172733,2346.2,2346.1,0.00418413]
[1726217550257,4.74172733,2346.2,2345.6,0.4263]
[1726217550258,6.85789,2346.2,2345.6,0.4263]
[1726217550448,3.75697676,2345.8,2345.7,0.4082]
[1726217550653,1.53,2345.8,2345.7,0.4082]
[1726217551150,3.75525908,2345.8,2345.7,0.4082]
[1726217551355,3.75525908,2345.8,2345.7,0.41248164]
[1726217551658,4.18152908,2345.8,2345.7,0.00428164]
[1726217551858,5.11515207,2345.8,2345.7,0.00428164]
[1726217552157,9.37422308,2345.8,2345.7,0.00428164]
[1726217553555,9.37422308,2345.8,2345.4,0.3849]
[1726217553556,0.42632,2345.6,2345.4,0.3849]
[1726217553756,6.40365887,2345.5,2345.4,0.3849]
[1726217554158,2.63986795,2345.5,2345.4,0.3849]
[1726217554561,2.63986795,2345.5,2345.4,0.39009176]
[1726217554758,2.63984175,2345.5,2345.4,0.39009176]
[1726217555158,5.84764175,2345.5,2345.4,0.39009176]
[1726217555467,2.63984175,2345.5,2345.4,0.39009176]
[1726217555665,1.53,2345.5,2345.4,0.39009176]
[1726217556063,2.63984175,2345.5,2345.4,0.39009176]
[1726217556360,1.53,2345.5,2345.4,0.39009176]
[1726217557963,1.53,2345.5,2345.4,0.81643176]
[1726217559269,3.03786434,2345.7,2345.4,0.39009176]
[1726217559570,2.63796434,2345.7,2345.6,0.4263]
[1726217559760,2.63796434,2345.7,2345.5,0.81971]
[1726217560070,1.53,2345.7,2345.6,0.4049]
[1726217560259,1.95629,2345.7,2345.6,0.4049]
[1726217560455,1.53,2345.7,2345.6,0.8312]
[1726217560761,1.48326434,2345.8,2345.6,0.8312]
[1726217560762,1.53423434,2345.8,2345.7,0.42629]
[1726217561061,3.06423434,2345.8,2345.7,0.42629]
[1726217561252,2.63796434,2345.8,2345.7,0.42629]
[1726217562262,1.53,2345.8,2345.7,0.42629]
[1726217562569,6.27203434,2345.8,2345.6,0.83119]
[1726217562863,8.57896434,2345.8,2345.4,0.00519176]
[1726217563166,4.7378,2345.5,2345.4,0.43152176]
[1726217563755,5.1096,2345.5,2345.4,0.43152176]
[1726217564757,1.9018,2345.5,2345.4,0.43152176]
[1726217564959,1.9018,2345.5,2345.4,0.43153176]
[1726217565269,2.3047,2345.5,2345.4,0.43153176]
[1726217567654,2.3047,2345.5,2345.4,0.00519176]
[1726217567861,2.3047,2345.5,2345.4,0.43153176]
[1726217569167,5.93882,2345.5,2345.4,0.00519176]
[1726217569564,10.20202,2345.5,2345.4,0.00519176]
[1726217570365,16.20202,2345.5,2345.4,0.00519176]
[1726217570763,10.20202,2345.5,2345.4,0.00519176]
[1726217571576,15.7757,2345.5,2344.8,4.198]
[1726217571762,1.53,2344.9,2344.8,0.42645]
[1726217572761,0.0032373,2344.9,2344.8,1.49765609]
[1726217573270,0.0032373,2344.9,2344.8,0.43152609]
[1726217574877,1.9357373,2344.9,2344.8,0.43152609]
[1726217575067,0.0032373,2344.9,2344.8,1.49765609]
[1726217576163,1.5332373,2344.9,2344.8,0.43152609]
[1726217581074,1.9596673,2344.9,2344.8,0.00507609]
[1726217581275,1.9596673,2344.9,2344.8,0.43152609]
[1726217581482,1.9596673,2344.9,2344.8,0.00507609]
[1726217581678,6.2244673,2344.9,2344.8,0.00507609]
[1726217582177,7.2905573,2344.9,2344.8,0.00507609]
[1726217582482,7.72685994,2344.9,2344.8,0.00507609]
[1726217582884,7.30042994,2344.9,2344.8,0.43152609]
[1726217583086,1.9293373,2344.9,2344.8,0.43152609]
[1726217583289,0.0032373,2344.9,2344.8,0.43152609]
[1726217583474,0.0032373,2344.9,2344.8,1.19382609]
[1726217584175,0.0032373,2344.9,2344.8,7.59088609]
[1726217584482,1.20629264,2345.4,2345.3,0.42636]
[1726217584685,3.84522264,2345.5,2345.4,0.42634]
[1726217585382,1.53,2345.5,2345.4,0.42634]
[1726217585684,1.96170818,2345.5,2345.4,0.42634]
[1726217586194,1.96170818,2345.5,2345.3,0.3748]
[1726217586195,0.42634,2345.4,2345.3,0.3748]
[1726217586483,3.44454264,2345.4,2345.2,0.42636]
[1726217586680,0.7679,2345.3,2345.2,0.42636]
[1726217587283,0.3797,2345.3,2345.2,0.42636]
[1726217587478,3.01819264,2345.4,2345.3,0.42636]
[1726217588283,3.44453264,2345.4,2345.3,0.42636]
[1726217588485,3.99767896,2345.4,2345.3,0.42636]
[1726217588690,3.44699226,2345.4,2345.3,0.42636]
[1726217589084,3.99767896,2345.4,2345.3,0.42636]
[1726217589993,3.57133896,2345.4,2345.3,0.42636]
[1726217590588,3.18943896,2345.4,2345.3,0.42636]
[1726217592291,3.74258529,2345.4,2345.3,0.42636]
[1726217592683,1.53,2345.4,2345.3,0.42636]
[1726217592884,3.74258529,2345.4,2345.3,0.42636]
[1726217594192,1.53,2345.4,2345.3,0.42636]
[1726217595087,4.29573161,2345.4,2345.3,0.42636]
[1726217595283,2.76573161,2345.4,2345.3,0.42636]
[1726217596679,5.16950818,2345.5,2345.2,1.06595]
[1726217596885,5.16950818,2345.5,2345.4,0.42634]
[1726217597090,4.74318818,2345.5,2345.4,0.42634]
[1726217597290,5.16950818,2345.5,2345.4,0.42634]
[1726217599702,1.96170818,2345.5,2345.4,0.42634]
[1726217599895,1.53538818,2345.5,2345.4,0.42634]
[1726217600196,1.96170818,2345.5,2345.4,0.42634]
[1726217601189,1.53538818,2345.5,2345.4,0.42634]
[1726217603503,1.96170818,2345.5,2345.4,0.42634]
[1726217603997,1.53538818,2345.5,2345.4,0.42634]
[1726217604700,0.00538818,2345.5,2345.4,0.42634]
[1726217605301,0.00538818,2345.5,2345.4,0.82124]
[1726217607003,0.00538818,2345.5,2345.4,1.8871]
[1726217607393,2.78913108,2345.5,2345.4,2.95296]
[1726217608204,0.00538818,2345.5,2345.4,1.8871]
[1726217608407,1.53538818,2345.5,2345.4,1.8871]
[1726217608598,1.53538818,2345.5,2345.4,0.42634]
[1726217608798,1.96170818,2345.5,2345.4,0.42634]
[1726217609007,2.34980818,2345.5,2345.4,0.42634]
[1726217609209,1.92348818,2345.5,2345.4,0.42634]
[1726217609809,5.66868611,2345.5,2345.4,0.42634]
[1726217610200,5.24236611,2345.5,2345.4,0.42634]
[1726217615804,2.34981818,2345.5,2345.4,0.42634]
[1726217616011,2.34981818,2345.5,2345.1,1.84498]
[1726217616012,2.34981818,2345.5,2345.3,0.42634]
[1726217616209,5.63957668,2345.4,2345.3,0.42634]
[1726217616813,2.2987,2345.4,2345.3,0.42634]
[1726217620105,5.5065,2345.4,2345.3,0.42634]
[1726217620406,2.2987,2345.4,2345.3,0.42634]
[1726217621514,5.5065,2345.4,2345.3,0.42634]
[1726217622309,2.2987,2345.4,2345.3,0.42634]
[1726217622513,5.5065,2345.4,2345.3,0.42634]
[1726217625417,2.2987,2345.4,2345.3,0.42634]
[1726217626516,5.5065,2345.4,2345.3,0.42634]
[1726217628212,8.84739057,2345.4,2345.3,0.42634]
[1726217628418,5.5065,2345.4,2345.3,0.42634]
[1726217628723,2.2987,2345.4,2345.3,0.42634]
[1726217628916,2.2987,2345.4,2345.3,1.49224]
[1726217629121,1.53538818,2345.5,2345.4,0.42634]
[1726217629518,1.53538818,2345.5,2345.4,0.79944]
[1726217630118,4.87627875,2345.5,2345.4,0.79944]
[1726217638339,3.34627875,2345.5,2345.4,1.8653]
[1726217639233,3.34627875,2345.5,2345.4,2.93116]
[1726217639433,0.00538818,2345.5,2345.4,2.93116]
[1726217639936,3.34627875,2345.5,2345.4,2.93116]
[1726217640335,3.34627875,2345.5,2345.4,7.19436]
[1726217641944,3.34627875,2345.5,2345.4,2.93116]
[1726217642130,3.34627875,2345.5,2345.4,1.8653]
[1726217642335,3.34627875,2345.5,2345.4,6.1285]
[1726217644334,3.34627875,2345.5,2345.4,1.8653]
[1726217644739,3.34627875,2345.5,2345.4,0.79944]
[1726217644937,5.85941385,2345.5,2345.4,0.79944]
[1726217645138,6.65611385,2345.5,2345.4,0.79944]
[1726217645342,6.22979385,2345.5,2345.4,0.79944]
[1726217645535,6.65611385,2345.5,2345.4,0.79944]
[1726217645840,6.22979385,2345.5,2345.4,0.79944]
[1726217646836,6.65611385,2345.5,2345.4,0.79944]
[1726217647047,6.10437112,2345.5,2345.4,0.79944]
[1726217647736,5.67805112,2345.5,2345.4,0.79944]
[1726217647936,6.10437112,2345.5,2345.4,0.79944]
[1726217648148,5.67805112,2345.5,2345.4,0.79944]
[1726217649836,5.67805112,2345.5,2345.4,0.42634]
[1726217650247,2.33208818,2345.5,2345.4,0.42634]
[1726217654650,4.1488635,2345.5,2345.4,0.42634]
[1726217655353,4.1488635,2345.5,2345.4,1.4922]
[1726217655354,3.7496635,2345.5,2345.4,1.4922]
[1726217655749,4.1759835,2345.5,2345.4,0.42634]
[1726217655952,2.35920818,2345.5,2345.4,0.42634]
[1726217656656,6.25691385,2345.5,2345.4,0.42634]
[1726217656855,2.35920818,2345.5,2345.4,0.42634]
[1726217657155,6.25691385,2345.5,2345.4,0.42634]
[1726217657455,1.93288818,2345.5,2345.4,0.42634]
[1726217657754,2.35920818,2345.5,2345.4,0.42634]
[1726217657947,6.25691385,2345.5,2345.4,0.42634]
[1726217658153,6.25691385,2345.5,2345.3,0.42635]
[1726217658154,0.42634,2345.4,2345.3,0.42635]
[1726217658355,5.16414,2345.4,2345.3,0.42635]
[1726217658555,9.06184567,2345.4,2345.3,0.42635]
[1726217660046,9.06184567,2345.4,2345.0,1.8319]
[1726217660242,1.53,2345.2,2345.0,1.8319]
[1726217660649,1.9385,2345.2,2345.1,0.42639]
[1726217662049,1.9385,2345.2,2344.8,0.43151609]
[1726217662050,1.066,2345.1,2344.8,0.43151609]
[1726217662357,1.53,2344.9,2344.8,0.43151609]
[1726217663358,7.39169381,2345.1,2344.8,1.07120609]
[1726217663650,5.68759381,2345.2,2345.1,0.42639]
[1726217663857,0.4025,2345.2,2345.1,0.42639]
[1726217664153,0.82888,2345.2,2345.1,0.42639]
[1726217664357,0.4025,2345.2,2345.1,0.42639]
[1726217664561,0.82888,2345.2,2345.1,0.42639]
[1726217667258,2.35888,2345.2,2345.1,0.42639]
[1726217670349,1.9325,2345.2,2345.1,0.42639]
[1726217671453,2.35888,2345.2,2345.1,0.42639]
[1726217672670,1.9325,2345.2,2345.1,0.42639]
[1726217673567,2.35888,2345.2,2345.1,0.42639]
[1726217674266,1.9325,2345.2,2345.1,0.42639]
[1726217677962,2.35888,2345.2,2345.1,0.42639]
[1726217678561,1.9325,2345.2,2345.1,0.42639]
[1726217678766,5.16417,2345.3,2345.2,0.42638]
[1726217681261,0.42639,2345.2,2345.1,0.42638]
[1726217681466,1.95639,2345.2,2345.1,0.42638]
[1726217681655,5.30298381,2345.2,2345.1,0.42638]
[1726217682058,1.95639,2345.2,2345.1,0.42638]
[1726217683262,3.77296381,2345.3,2345.2,0.42638]
[1726217683463,3.2078,2345.3,2345.2,0.42638]
[1726217683660,6.46715381,2345.4,2345.3,0.42636]
[1726217684671,5.65669381,2345.4,2345.3,0.42636]
[1726217684964,2.73644,2345.4,2345.3,0.42636]
[1726217685192,2.3101,2345.4,2345.3,0.42636]
[1726217685367,2.3101,2345.4,2345.3,0.80786]
[1726217686164,5.65669381,2345.4,2345.3,0.80786]
[1726217686368,2.73644,2345.4,2345.3,0.80786]
[1726217686667,6.08303381,2345.4,2345.3,0.80786]
[1726217686966,2.73644,2345.4,2345.3,0.80786]
[1726217687670,6.08303381,2345.4,2345.3,0.80786]
[1726217690472,9.29083381,2345.4,2345.3,0.80786]
[1726217690866,9.69833381,2345.4,2345.3,0.80786]
[1726217691573,6.49053381,2345.4,2345.3,0.80786]
[1726217691772,9.69833381,2345.4,2345.3,0.80786]
[1726217692472,6.49053381,2345.4,2345.3,0.80786]
[1726217692673,9.69833381,2345.4,2345.3,0.80786]
[1726217694278,6.49053381,2345.4,2345.3,0.80786]
[1726217694575,6.35174,2345.4,2345.3,0.80786]
[1726217696169,3.14394,2345.4,2345.3,0.80786]
[1726217696673,6.35174,2345.4,2345.3,0.80786]
[1726217698281,6.35174,2345.4,2345.3,0.42636]
[1726217698483,10.24944567,2345.4,2345.3,0.42636]
[1726217700369,6.35174,2345.4,2345.3,0.42636]
[1726217700782,10.80806598,2345.4,2345.3,0.42636]
[1726217701283,6.35174,2345.4,2345.3,0.42636]
[1726217701478,10.80806598,2345.4,2345.3,0.42636]
[1726217701983,7.60026598,2345.4,2345.3,0.42636]
[1726217702478,10.80806598,2345.4,2345.3,0.42636]
[1726217705198,7.60026598,2345.4,2345.3,0.42636]
[1726217705482,10.80806598,2345.4,2345.3,0.42636]
[1726217707286,10.25459521,2345.4,2345.3,0.42636]
[1726217708784,6.35174,2345.4,2345.3,0.42636]
[1726217708988,10.61574,2345.4,2345.3,0.42636]
[1726217709182,15.07206598,2345.4,2345.3,0.42636]
[1726217710075,10.80806598,2345.4,2345.3,0.42636]
[1726217711381,10.80806598,2345.4,2345.0,1.43924]
[1726217711382,10.38172598,2345.4,2345.0,1.43924]
[1726217711582,4.33099441,2345.3,2345.2,0.42636]
[1726217711792,5.86099441,2345.3,2345.2,0.42636]
[1726217713179,9.06879441,2345.3,2345.2,0.42636]
[1726217715377,9.62049598,2345.3,2345.2,0.42636]
[1726217722376,9.06755047,2345.3,2345.2,0.42636]
[1726217723088,5.85975047,2345.3,2345.2,0.42636]
[1726217723288,9.06755047,2345.3,2345.2,0.42636]
[1726217723490,5.85975047,2345.3,2345.2,0.42636]
[1726217723687,9.06755047,2345.3,2345.2,0.42636]
[1726217724390,12.90518047,2345.3,2345.0,0.3732]
[1726217724693,3.90338047,2345.1,2345.0,0.79961]
[1726217724899,5.43338047,2345.1,2345.0,0.79961]
[1726217725389,5.83038047,2345.1,2345.0,0.79961]
[1726217725581,6.21458047,2345.1,2345.0,0.79961]
[1726217726687,9.42238047,2345.1,2345.0,0.79961]
[1726217727993,9.81658047,2345.1,2345.0,0.79961]
[1726217728182,10.24297047,2345.1,2345.0,0.3732]
[1726217728378,6.33959,2345.1,2345.0,0.3732]
[1726217728589,10.24297047,2345.1,2345.0,0.79961]
[1726217729494,0.42642,2345.0,2344.8,0.42644]
[1726217729689,1.53,2344.9,2344.8,0.42644]
[1726217731584,5.3001261,2344.9,2344.8,0.42644]
[1726217731891,1.95643,2344.9,2344.8,0.42644]
[1726217732484,1.53,2344.9,2344.8,0.42644]
[1726217735200,4.7378,2344.9,2344.8,0.42644]
[1726217736094,1.53,2344.9,2344.8,0.42644]
[1726217736296,4.7378,2344.9,2344.8,0.42644]
[1726217737898,5.16423,2344.9,2344.8,0.42644]
[1726217738489,4.7378,2344.9,2344.8,0.42644]
[1726217738897,5.16423,2344.9,2344.8,0.42644]
[1726217743993,1.95643,2344.9,2344.8,0.42644]
[1726217744200,5.16423,2344.9,2344.8,0.42644]
[1726217753594,1.95643,2344.9,2344.8,0.42644]
[1726217753789,5.16423,2344.9,2344.8,0.42644]
[1726217753995,1.95643,2344.9,2344.8,0.42644]
[1726217754195,5.16423,2344.9,2344.8,0.42644]
[1726217757503,4.7378,2344.9,2344.6,1.1704]
[1726217757806,1.61427,2344.8,2344.7,0.42646]
[1726217757993,3.14427,2344.8,2344.7,0.42646]
[1726217758707,2.7178,2344.8,2344.7,0.42646]
[1726217758905,3.2078,2344.9,2344.8,1.49258]
[1726217759209,3.3436961,2345.1,2345.0,0.42641]
[1726217759700,7.3514761,2345.2,2345.1,0.42639]
[1726217761406,4.00778,2345.2,2345.1,0.42639]
[1726217764612,0.79998,2345.2,2345.1,0.42639]
[1726217764815,4.00778,2345.2,2345.1,0.42639]
[1726217771812,0.4264,2345.1,2345.0,0.4264]
[1726217772006,4.87393622,2345.1,2345.0,0.42641]
[1726217775108,0.42641,2345.0,2344.9,0.7613]
[1726217775309,4.54335622,2345.0,2344.9,0.42643]
[1726217775508,0.42643,2344.9,2344.8,0.42644]
[1726217775718,5.57253,2344.9,2344.8,0.42644]
[1726217776415,1.9383,2344.9,2344.8,0.42644]
[1726217778409,5.1461,2344.9,2344.8,0.42644]
[1726217778704,2.36473,2344.9,2344.6,0.7833]
[1726217778911,4.04253,2344.9,2344.7,0.42645]
[1726217779210,1.53,2344.8,2344.7,0.42645]
[1726217781719,0.42652,2344.4,2344.3,4.198]
[1726217781922,0.42654,2344.3,2344.2,0.3794]
[1726217782105,0.42654,2344.3,2344.0,1.4941992]
[1726217782106,0.7644,2344.3,2344.0,0.80349]
[1726217782309,3.2078,2344.2,2344.1,0.83488]
[1726217782505,4.3134008,2344.2,2344.1,0.83488]
[1726217783020,2.7834008,2344.2,2344.1,0.83488]
[1726217783207,0.7644,2344.3,2344.2,0.42656]
[1726217783208,2.78323839,2344.3,2344.2,0.42656]
[1726217783409,2.78323839,2344.3,2344.2,0.83696]
[1726217785019,4.73976839,2344.4,2344.3,0.42654]
[1726217785217,1.95653,2344.4,2344.3,0.3835]
[1726217785723,4.31134645,2344.4,2344.3,0.81004]
[1726217786113,1.95652,2344.4,2344.3,0.81004]